bitfinex/quotes_BTCUSD_20241101
["timestamp","ask_amount","ask_price","bid_price","bid_amount"]
[1730473541390,0.31308802,71110.0,71095.0,0.0756]
[1730473541598,0.31308802,71110.0,71096.0,0.21079554]
[1730473541838,0.31308802,71110.0,71095.0,0.0756]
[1730473541839,0.78365325,71110.0,71095.0,0.0756]
[1730473542044,0.78365325,71110.0,71096.0,0.21079554]
[1730473542251,0.67801659,71110.0,71109.0,0.002588]
[1730473542653,0.67501659,71110.0,71109.0,0.001588]
[1730473542858,0.68701659,71110.0,71109.0,0.002588]
[1730473543076,0.67501659,71110.0,71109.0,0.001588]
[1730473543504,0.68901659,71110.0,71109.0,0.001588]
[1730473544165,0.81416655,71110.0,71109.0,0.001588]
[1730473544398,0.68901659,71110.0,71109.0,0.001588]
[1730473544601,0.68901659,71110.0,71109.0,0.002588]
[1730473544602,0.70001659,71110.0,71109.0,0.002588]
[1730473545220,0.68901659,71110.0,71109.0,0.001588]
[1730473545454,0.68901659,71110.0,71109.0,0.001]
[1730473545662,0.78604285,71110.0,71109.0,0.001]
[1730473545880,0.70301659,71110.0,71109.0,0.002]
[1730473546088,0.68901659,71110.0,71109.0,0.001]
[1730473546536,0.70301659,71110.0,71109.0,0.002]
[1730473546757,0.82956745,71110.0,71109.0,0.002]
[1730473546990,0.82956745,71110.0,71109.0,0.001]
[1730473546991,0.81556745,71110.0,71109.0,0.001]
[1730473547198,0.68901659,71110.0,71109.0,0.001]
[1730473547429,0.70287294,71110.0,71109.0,0.002]
[1730473547844,0.24065,71098.0,71097.0,0.00051194]
[1730473548078,0.41296737,71098.0,71097.0,0.00051194]
[1730473548287,0.41296737,71098.0,71097.0,0.00816718]
[1730473548515,0.41296737,71098.0,71097.0,0.00051194]
[1730473549129,0.43896737,71098.0,71097.0,0.00151194]
[1730473549545,0.46196737,71098.0,71097.0,0.00151194]
[1730473549985,0.44796737,71098.0,71097.0,0.00051194]
[1730473550565,0.44896737,71098.0,71097.0,0.00151194]
[1730473550933,0.44896737,71098.0,71097.0,0.00251194]
[1730473550934,0.46096737,71098.0,71097.0,0.00251194]
[1730473551402,0.44896737,71098.0,71097.0,0.00151194]
[1730473551722,0.46296737,71098.0,71097.0,0.00251194]
[1730473551936,0.57730202,71098.0,71097.0,0.00251194]
[1730473552142,0.140658,71094.0,71083.0,0.22972704]
[1730473552349,0.67490394,71094.0,71083.0,0.22972704]
[1730473553010,0.67490394,71094.0,71083.0,0.0189315]
[1730473553228,0.123,71093.0,71083.0,0.0189315]
[1730473553501,0.263678,71084.0,71083.0,0.0189315]
[1730473553720,0.43599537,71084.0,71083.0,0.0189315]
[1730473554406,0.263682,71082.0,71081.0,0.00159]
[1730473554606,0.56206356,71082.0,71081.0,0.00159]
[1730473555062,0.59657998,71082.0,71081.0,0.00159]
[1730473555260,0.59657998,71082.0,71058.0,0.30899554]
[1730473555261,0.240728,71059.0,71058.0,0.21079554]
[1730473555529,0.67497038,71059.0,71058.0,0.21079554]
[1730473555700,0.24074,71053.0,71051.0,0.0793]
[1730473555909,0.41305381,71053.0,71051.0,0.0793]
[1730473556327,0.31305381,71053.0,71051.0,0.0793]
[1730473556530,0.03385856,71053.0,71051.0,0.0793]
[1730473556765,0.03385856,71053.0,71052.0,0.236741]
[1730473556991,0.009,71059.0,71058.0,0.31993]
[1730473557190,0.02169794,71070.0,71062.0,0.140721]
[1730473557408,0.02169794,71070.0,71058.0,0.1792]
[1730473557409,0.21079554,71063.0,71059.0,0.00281423]
[1730473557610,0.21079554,71071.0,71058.0,0.1820143]
[1730473557822,0.21079554,71071.0,71060.0,0.01026833]
[1730473558035,0.21079554,71071.0,71061.0,0.140724]
[1730473558237,0.140708,71069.0,71060.0,0.01308256]
[1730473558439,0.140708,71069.0,71060.0,0.15380756]
[1730473558660,0.281412,71070.0,71060.0,0.01026833]
[1730473558820,0.140708,71069.0,71060.0,0.15099333]
[1730473559038,0.02170833,71074.0,71061.0,0.281447]
[1730473559244,0.140679,71084.0,71073.0,0.1407]
[1730473559475,0.281362,71083.0,71072.0,0.0912]
[1730473560133,0.140693,71077.0,71072.0,0.0912]
[1730473560338,0.281374,71080.0,71072.0,0.0912]
[1730473560339,0.1407,71073.0,71072.0,0.0912]
[1730473560542,0.0217083,71083.0,71072.0,0.0912]
[1730473560772,0.0217083,71085.0,71072.0,0.09401376]
[1730473560970,0.0217083,71088.0,71074.0,0.0946]
[1730473561199,0.21079554,71091.0,71087.0,0.0946]
[1730473561432,0.21079554,71091.0,71090.0,0.140666]
[1730473561622,0.21079554,71091.0,71088.0,0.140668]
[1730473561823,0.14065,71098.0,71087.0,0.1745]
[1730473562071,0.140669,71089.0,71087.0,0.1745]
[1730473562272,0.21079554,71099.0,71087.0,0.1745]
[1730473562610,0.281315,71095.0,71087.0,0.1745]
[1730473562824,0.140663,71092.0,71087.0,0.1745]
[1730473563029,0.281305,71097.0,71088.0,0.01050938]
[1730473563234,0.140662,71093.0,71088.0,0.01050938]
[1730473563445,0.281292,71101.0,71090.0,0.005]
[1730473563649,0.140653,71097.0,71091.0,0.140664]
[1730473563871,0.21079554,71099.0,71091.0,0.0104974]
[1730473564546,0.281286,71102.0,71088.0,0.001]
[1730473564778,0.23892857,71128.0,71097.0,0.0812]
[1730473564987,0.21079554,71107.0,71097.0,0.08401277]
[1730473565195,0.281218,71120.0,71108.0,0.140631]
[1730473565397,0.281218,71120.0,71108.0,0.306531]
[1730473565636,0.140611,71119.0,71108.0,0.306531]
[1730473565832,0.150629,71109.0,71108.0,0.1659]
[1730473566450,0.28908425,71109.0,71108.0,0.0903]
[1730473566979,0.03091567,71109.0,71099.0,0.0756]
[1730473567192,0.140646,71100.0,71099.0,0.0756]
[1730473567334,0.16156167,71100.0,71099.0,0.0756]
[1730473568149,0.30001692,71100.0,71099.0,0.0756]
[1730473568380,0.140666,71090.0,71089.0,0.0796]
[1730473568611,0.02091567,71090.0,71089.0,0.0796]
[1730473568842,0.281288,71102.0,71089.0,0.0796]
[1730473569053,0.03404084,71090.0,71089.0,0.220268]
[1730473569236,0.140649,71099.0,71090.0,0.281332]
[1730473569503,0.49208854,71101.0,71099.0,0.005]
[1730473569729,0.03906762,71100.0,71099.0,0.001]
[1730473569936,0.03906762,71100.0,71099.0,0.0962]
[1730473570382,0.03406762,71100.0,71099.0,0.1059642]
[1730473570575,0.17471362,71100.0,71099.0,0.1059642]
[1730473570858,0.31316887,71100.0,71099.0,0.0107642]
[1730473571092,0.140664,71091.0,71090.0,0.006]
[1730473571315,0.17473162,71091.0,71090.0,0.006]
[1730473571554,0.140668,71089.0,71085.0,0.0997]
[1730473571785,0.31319087,71089.0,71079.0,0.0754]
[1730473572043,0.43619087,71089.0,71072.0,0.0947]
[1730473572261,0.1407,71073.0,71072.0,0.0947]
[1730473572485,0.17476762,71073.0,71072.0,0.0947]
[1730473572722,0.17479024,71073.0,71072.0,0.0947]
[1730473572895,0.140704,71071.0,71070.0,0.0754]
[1730473573145,0.15381607,71071.0,71070.0,0.0754]
[1730473573435,0.17479538,71071.0,71070.0,0.0754]
[1730473574772,0.03409138,71071.0,71070.0,0.216106]
[1730473574981,0.03409138,71071.0,71070.0,0.217106]
[1730473575605,0.03409138,71071.0,71070.0,0.216106]
[1730473576039,0.03409138,71071.0,71070.0,0.219106]
[1730473576287,0.140663,71092.0,71085.0,0.140676]
[1730473576514,0.281286,71102.0,71085.0,0.313476]
[1730473576515,0.21079554,71095.0,71085.0,0.313476]
[1730473576729,0.21079554,71095.0,71085.0,0.312976]
[1730473576953,0.21079554,71095.0,71085.0,0.1728]
[1730473577206,0.140674,71086.0,71085.0,0.1728]
[1730473577633,0.140693,71077.0,71072.0,0.1711]
[1730473577865,0.140695,71076.0,71074.0,0.21079554]
[1730473578092,0.34925079,71095.0,71073.0,0.01088987]
[1730473578093,0.21079554,71087.0,71073.0,0.01088987]
[1730473578320,0.1407,71073.0,71072.0,0.1711]
[1730473578786,0.140698,71075.0,71072.0,0.1741]
[1730473579042,0.140693,71077.0,71072.0,0.1741]
[1730473579269,0.140677,71085.0,71078.0,0.14069]
[1730473579508,0.281333,71090.0,71081.0,0.140684]
[1730473579731,0.21079554,71086.0,71079.0,0.281377]
[1730473579958,0.21079554,71086.0,71085.0,0.140676]
[1730473580182,0.140663,71092.0,71085.0,0.140676]
[1730473580618,0.21079554,71095.0,71077.0,0.23892857]
[1730473580847,0.21079554,71103.0,71077.0,0.23892857]
[1730473580848,0.281289,71101.0,71081.0,0.0983]
[1730473581078,0.21079554,71095.0,71093.0,0.14066]
[1730473581294,0.21079554,71095.0,71088.0,0.14067]
[1730473581510,0.281309,71097.0,71094.0,0.01080141]
[1730473581695,0.140665,71091.0,71085.0,0.140676]
[1730473582013,0.843867,71101.0,71085.0,0.140675]
[1730473582014,0.140663,71092.0,71085.0,0.140675]
[1730473582220,0.140663,71092.0,71086.0,0.01082827]
[1730473582221,0.140671,71088.0,71086.0,0.01082827]
[1730473582416,0.140672,71087.0,71086.0,0.01082827]
[1730473582622,0.422005,71089.0,71081.0,0.1741]
[1730473582748,0.140672,71088.0,71081.0,0.314783]
[1730473582952,0.140672,71088.0,71085.0,0.006]
[1730473583371,0.281337,71090.0,71085.0,0.006]
[1730473583372,0.140667,71090.0,71086.0,0.01082721]
[1730473583572,0.001,71091.0,71086.0,0.01082721]
[1730473583573,0.140672,71087.0,71086.0,0.01082721]
[1730473584254,0.281337,71089.0,71076.0,0.281388]
[1730473584452,0.140677,71085.0,71079.0,0.140687]
[1730473584806,0.140682,71082.0,71081.0,0.002]
[1730473585107,0.140682,71082.0,71080.0,0.01085118]
[1730473585108,0.140684,71081.0,71074.0,0.281396]
[1730473585311,0.140689,71079.0,71073.0,0.222899]
[1730473585539,0.140689,71079.0,71076.0,0.006]
[1730473585540,0.140692,71077.0,71076.0,0.006]
[1730473585752,0.40214725,71077.0,71076.0,0.006]
[1730473585985,0.40214725,71077.0,71053.0,0.000825]
[1730473585986,0.123,71076.0,71054.0,0.21079554]
[1730473586201,0.140736,71055.0,71054.0,0.21079554]
[1730473586440,0.16173129,71055.0,71054.0,0.21079554]
[1730473586663,0.16173129,71055.0,71053.0,0.000825]
[1730473586664,0.140738,71054.0,71053.0,0.000825]
[1730473587101,0.16174045,71054.0,71053.0,0.000825]
[1730473587314,0.140738,71054.0,71053.0,0.000825]
[1730473587747,0.16173821,71054.0,71053.0,0.000825]
[1730473588173,0.17486334,71054.0,71053.0,0.000825]
[1730473588391,0.15386313,71054.0,71053.0,0.000825]
[1730473588601,0.15786313,71054.0,71053.0,0.000825]
[1730473588821,0.01712513,71054.0,71053.0,0.01179585]
[1730473589050,0.01912513,71054.0,71053.0,0.01179585]
[1730473589261,0.002,71054.0,71053.0,0.29380567]
[1730473589464,0.04145679,71076.0,71067.0,0.281421]
[1730473589465,0.02098827,71072.0,71067.0,0.281421]
[1730473589692,0.01,71070.0,71069.0,0.140708]
[1730473589917,0.01,71070.0,71069.0,0.317908]
[1730473589918,0.02311617,71070.0,71069.0,0.317908]
[1730473590164,0.01,71070.0,71069.0,0.3288211]
[1730473590648,0.01,71070.0,71069.0,0.46727635]
[1730473591320,0.04145679,71076.0,71075.0,0.140696]
[1730473591536,0.04145679,71076.0,71075.0,0.51807982]
[1730473591748,0.04145679,71076.0,71075.0,0.52895862]
[1730473593802,0.04145679,71076.0,71075.0,0.53395862]
[1730473594264,0.08293147,71080.0,71079.0,0.240688]
[1730473594503,0.05104913,71081.0,71080.0,0.359686]
[1730473594741,0.00165,71085.0,71080.0,0.359686]
[1730473594742,0.00165,71085.0,71083.0,0.14068]
[1730473594990,0.00165,71085.0,71083.0,0.61806382]
[1730473595203,0.00165,71085.0,71083.0,0.62927377]
[1730473597182,0.00165,71085.0,71083.0,0.63327377]
[1730473597421,0.21079554,71103.0,71102.0,0.140643]
[1730473597686,0.21079554,71103.0,71102.0,0.37429825]
[1730473597911,0.21079554,71103.0,71102.0,0.46042429]
[1730473598141,0.281211,71121.0,71109.0,0.14041]
[1730473598394,0.140612,71118.0,71109.0,0.14041]
[1730473598611,0.281202,71124.0,71109.0,0.15165572]
[1730473598836,0.140616,71116.0,71109.0,0.15165572]
[1730473599069,0.281234,71116.0,71109.0,0.01124572]
[1730473599287,0.140621,71114.0,71109.0,0.15187472]
[1730473599496,0.281234,71116.0,71106.0,0.140634]
[1730473599497,0.281243,71113.0,71106.0,0.140634]
[1730473599704,0.142277,71110.0,71109.0,0.01124216]
[1730473599911,0.00165,71110.0,71102.0,0.004]
[1730473600205,0.140641,71103.0,71102.0,0.004]
[1730473600386,0.281278,71104.0,71087.0,0.21079554]
[1730473600387,0.140647,71100.0,71096.0,0.35144854]
[1730473600590,0.140647,71100.0,71096.0,0.140653]
[1730473601035,0.281287,71102.0,71093.0,0.281321]
[1730473601463,0.281287,71102.0,71087.0,0.49214054]
[1730473601464,0.21079554,71108.0,71099.0,0.140647]
[1730473601659,0.21079554,71108.0,71087.0,0.21079554]
[1730473601660,0.01312,71107.0,71103.0,0.14064]
[1730473601867,0.01312,71107.0,71094.0,0.281317]
[1730473602019,0.01312,71107.0,71099.0,0.140647]
[1730473602020,0.140639,71104.0,71099.0,0.140647]
[1730473602233,0.281277,71105.0,71102.0,0.002]
[1730473602408,0.140641,71103.0,71102.0,0.002]
[1730473602611,0.281266,71107.0,71094.0,0.281317]
[1730473602806,0.140644,71102.0,71096.0,0.281309]
[1730473603095,0.21079554,71108.0,71091.0,0.0817]
[1730473603303,0.28127,71106.0,71094.0,0.006]
[1730473603498,0.140655,71096.0,71094.0,0.006]
[1730473603744,0.140656,71095.0,71093.0,0.004]
[1730473603953,0.00165,71110.0,71094.0,0.281317]
[1730473604128,0.14065,71098.0,71095.0,0.140655]
[1730473604340,0.140649,71099.0,71095.0,0.140655]
[1730473604541,0.14065,71099.0,71095.0,0.140655]
[1730473604763,0.14065,71098.0,71095.0,0.140655]
[1730473605192,0.281249,71112.0,71096.0,0.14626822]
[1730473605429,0.21079554,71105.0,71104.0,0.140639]
[1730473605868,0.142277,71110.0,71102.0,0.281285]
[1730473605869,0.21079554,71109.0,71102.0,0.281285]
[1730473606053,0.21079554,71109.0,71089.0,0.0978]
[1730473606304,0.140647,71100.0,71095.0,0.140655]
[1730473606538,0.140649,71099.0,71091.0,0.281328]
[1730473606750,0.140649,71099.0,71090.0,0.21079554]
[1730473606751,0.21079554,71109.0,71089.0,0.0978]
[1730473606955,0.01310358,71107.0,71104.0,0.005]
[1730473607159,0.140637,71105.0,71104.0,0.005]
[1730473607586,0.15373886,71105.0,71104.0,0.005]
[1730473607859,0.282908,71110.0,71104.0,0.005]
[1730473607860,0.00165,71110.0,71104.0,0.005]
[1730473608097,0.140629,71109.0,71105.0,0.140636]
[1730473608299,0.00165,71110.0,71107.0,0.140633]
[1730473608514,0.00165,71110.0,71099.0,0.0942]
[1730473608726,0.00165,71110.0,71107.0,0.140633]
[1730473609184,0.00165,71110.0,71107.0,0.28190056]
[1730473609415,0.00165,71110.0,71107.0,0.27908825]
[1730473609848,0.00165,71110.0,71107.0,0.140633]
[1730473610258,0.00265,71108.0,71107.0,0.146633]
[1730473610468,0.00265,71108.0,71107.0,0.006]
[1730473610693,0.21344554,71108.0,71107.0,0.006]
[1730473610913,0.143281,71108.0,71107.0,0.006]
[1730473611348,0.143281,71108.0,71103.0,0.14064]
[1730473611349,0.142281,71108.0,71103.0,0.14064]
[1730473611559,0.142281,71108.0,71107.0,0.001]
[1730473611560,0.00165,71108.0,71107.0,0.001]
[1730473611785,0.00265,71108.0,71107.0,0.006]
[1730473611999,0.00265,71108.0,71107.0,0.146633]
[1730473612213,0.00165,71108.0,71107.0,0.140633]
[1730473612434,0.00165,71108.0,71107.0,0.142633]
[1730473612646,0.00165,71108.0,71107.0,0.002]
[1730473613093,0.00165,71108.0,71104.0,0.281275]
[1730473613303,0.00165,71108.0,71107.0,0.140633]
[1730473613516,0.00165,71108.0,71107.0,0.150633]
[1730473614004,0.00165,71108.0,71107.0,0.15344551]
[1730473614221,0.00165,71108.0,71107.0,0.37340076]
[1730473614446,0.00165,71108.0,71107.0,0.37058825]
[1730473615115,0.00165,71108.0,71107.0,0.37458825]
[1730473615950,0.00165,71108.0,71107.0,0.47458825]
[1730473616168,0.00265,71108.0,71107.0,0.48058825]
[1730473616389,0.00265,71108.0,71107.0,0.47658825]
[1730473616881,0.00265,71108.0,71107.0,0.48058825]
[1730473617105,0.00265,71108.0,71107.0,0.47658825]
[1730473617324,0.00265,71108.0,71107.0,0.48058825]
[1730473617772,0.00265,71108.0,71107.0,0.47458825]
[1730473617773,0.00165,71108.0,71107.0,0.47458825]
[1730473618217,0.00265,71108.0,71107.0,0.48058825]
[1730473618647,0.00265,71108.0,71107.0,0.46816345]
[1730473618648,0.00165,71108.0,71107.0,0.46816345]
[1730473619083,0.00265,71108.0,71107.0,0.47416345]
[1730473619400,0.00265,71108.0,71107.0,0.47016345]
[1730473619608,0.00165,71108.0,71107.0,0.46416345]
[1730473619822,0.00165,71108.0,71107.0,0.46816345]
[1730473620022,0.00165,71108.0,71107.0,0.46416345]
[1730473620667,0.00165,71108.0,71107.0,0.46816345]
[1730473620839,0.00165,71108.0,71107.0,0.46416345]
[1730473621355,0.00165,71108.0,71107.0,0.47416345]
[1730473621356,0.00265,71108.0,71107.0,0.47416345]
[1730473621726,0.00165,71108.0,71107.0,0.46816345]
[1730473622069,0.00265,71108.0,71107.0,0.47416345]
[1730473622825,0.00265,71108.0,71107.0,0.48416345]
[1730473624230,0.00265,71108.0,71107.0,0.98416345]
[1730473626229,0.00265,71108.0,71107.0,0.89908825]
[1730473626907,0.00265,71108.0,71107.0,0.88908825]
[1730473630569,0.00265,71108.0,71107.0,0.88991325]
[1730473631609,1e-06,71108.0,71107.0,0.91291325]
[1730473631812,1e-06,71109.0,71108.0,0.0996]
[1730473632015,1e-06,71109.0,71108.0,0.5044979]
[1730473632225,1e-06,71109.0,71108.0,0.50168625]
[1730473632443,0.0218669,71146.0,71124.0,0.140599]
[1730473632690,0.21079554,71149.0,71124.0,0.45495425]
[1730473632889,0.21079554,71149.0,71132.0,0.140583]
[1730473633112,0.21079554,71149.0,71132.0,0.27903825]
[1730473633338,0.140565,71142.0,71132.0,0.27903825]
[1730473633553,0.01311686,71133.0,71132.0,0.27903825]
[1730473634418,0.21079554,71141.0,71140.0,0.140567]
[1730473634671,0.24489901,71141.0,71140.0,0.5]
[1730473634895,0.17466847,71141.0,71140.0,0.5]
[1730473635316,0.03410347,71141.0,71140.0,0.5]
[1730473635601,0.17466847,71141.0,71140.0,0.5]
[1730473636917,0.17466847,71141.0,71140.0,0.505]
[1730473637135,0.140565,71141.0,71140.0,0.505]
[1730473637355,0.03411091,71141.0,71140.0,0.5]
[1730473637607,0.03411091,71141.0,71140.0,0.640567]
[1730473637802,0.03711091,71141.0,71140.0,0.640567]
[1730473638095,0.03711091,71141.0,71140.0,0.77902225]
[1730473638320,0.01311958,71141.0,71140.0,0.77902225]
[1730473638517,0.01311958,71141.0,71140.0,0.78002225]
[1730473639704,0.01311958,71141.0,71140.0,0.77902225]
[1730473640118,0.01311958,71141.0,71140.0,0.78402225]
[1730473640528,0.001594,71151.0,71140.0,0.65745525]
[1730473640733,0.001594,71151.0,71146.0,0.140556]
[1730473640734,0.21079554,71147.0,71146.0,0.140556]
[1730473640948,0.01311673,71147.0,71146.0,0.28182215]
[1730473641153,0.001594,71151.0,71147.0,0.1]
[1730473641316,0.21079554,71171.0,71154.0,0.24054]
[1730473641524,0.21079554,71163.0,71154.0,0.38180506]
[1730473641762,0.21079554,71171.0,71159.0,0.14053]
[1730473641986,0.21079554,71162.0,71159.0,0.37898525]
[1730473642353,0.21079554,71171.0,71159.0,0.27898525]
[1730473642354,0.21079554,71161.0,71159.0,0.27898525]
[1730473642585,0.21079554,71171.0,71159.0,0.27898525]
[1730473643486,0.21079554,71171.0,71159.0,0.28298525]
[1730473643657,0.21079554,71171.0,71159.0,0.27898525]
[1730473643867,0.21079554,71171.0,71159.0,0.14553]
[1730473644158,0.15521473,71160.0,71159.0,0.009]
[1730473644329,0.01468673,71160.0,71159.0,0.004]
[1730473644529,0.01468673,71160.0,71159.0,0.14453]
[1730473644734,0.01468673,71160.0,71159.0,0.14953]
[1730473645300,0.01468673,71160.0,71159.0,0.14553]
[1730473645505,0.01468673,71160.0,71159.0,0.005]
[1730473645727,0.01468673,71160.0,71159.0,0.009]
[1730473645933,0.01468673,71160.0,71154.0,0.5]
[1730473646147,0.01309473,71159.0,71154.0,0.5]
[1730473646355,0.01308996,71158.0,71156.0,0.140535]
[1730473646520,0.01308996,71158.0,71154.0,0.5]
[1730473646521,0.001592,71160.0,71159.0,0.14053]
[1730473646748,0.001592,71160.0,71159.0,0.27898525]
[1730473647109,0.001592,71160.0,71159.0,0.28098525]
[1730473647318,0.001592,71160.0,71159.0,0.27898525]
[1730473647748,0.001592,71160.0,71159.0,0.14053]
[1730473647977,0.001592,71160.0,71159.0,0.14553]
[1730473648370,0.001592,71160.0,71159.0,0.005]
[1730473648724,0.001592,71160.0,71159.0,0.14553]
[1730473649132,0.001592,71160.0,71157.0,0.140532]
[1730473649413,0.001592,71160.0,71156.0,0.285068]
[1730473649634,0.001592,71160.0,71159.0,0.14053]
[1730473649849,0.001592,71160.0,71159.0,0.15453]
[1730473650070,0.001592,71160.0,71159.0,0.15953]
[1730473650282,0.001592,71160.0,71159.0,0.15553]
[1730473650657,0.001592,71160.0,71159.0,0.15053]
[1730473650874,0.001592,71160.0,71159.0,0.01]
[1730473651297,0.14212,71160.0,71159.0,0.014]
[1730473651510,0.001592,71160.0,71159.0,0.014]
[1730473651748,0.001592,71160.0,71159.0,0.15453]
[1730473651962,0.001592,71160.0,71159.0,0.014]
[1730473652385,0.001592,71160.0,71159.0,0.01]
[1730473652601,0.001592,71160.0,71159.0,0.15553]
[1730473652812,0.001592,71160.0,71159.0,0.14953]
[1730473653026,0.001592,71160.0,71159.0,0.14053]
[1730473653492,0.001592,71160.0,71159.0,0.14553]
[1730473653988,0.001592,71160.0,71159.0,0.002]
[1730473654200,0.001592,71160.0,71159.0,0.007]
[1730473654885,0.001592,71160.0,71159.0,0.14753]
[1730473655552,0.001592,71160.0,71159.0,0.14053]
[1730473655766,0.001592,71160.0,71159.0,0.14353]
[1730473655967,0.001592,71160.0,71159.0,0.15453]
[1730473656185,0.001592,71160.0,71159.0,0.15053]
[1730473656404,0.001592,71160.0,71159.0,0.15453]
[1730473656626,0.001592,71160.0,71159.0,0.3007956]
[1730473656864,0.001592,71160.0,71159.0,0.36918525]
[1730473657093,0.001592,71160.0,71159.0,0.46618525]
[1730473657312,0.001592,71160.0,71159.0,0.46418525]
[1730473657524,0.001592,71160.0,71159.0,0.46718525]
[1730473657965,0.001592,71160.0,71159.0,0.47068849]
[1730473658216,0.001592,71160.0,71159.0,0.49368849]
[1730473658656,0.001592,71160.0,71159.0,0.47068849]
[1730473658873,0.001592,71160.0,71159.0,0.47468849]
[1730473659074,0.001592,71160.0,71159.0,0.47068849]
[1730473659274,0.001592,71160.0,71159.0,0.46768849]
[1730473659508,0.001592,71160.0,71159.0,0.46168849]
[1730473659711,0.001592,71160.0,71159.0,0.39148849]
[1730473660132,0.001592,71160.0,71159.0,0.38648849]
[1730473660572,0.001592,71160.0,71159.0,0.89148849]
[1730473661080,0.001592,71160.0,71159.0,0.88748849]
[1730473661964,0.001592,71160.0,71159.0,0.79748849]
[1730473662182,0.001592,71160.0,71159.0,0.79398525]
[1730473662400,0.001592,71160.0,71159.0,0.81020043]
[1730473662627,0.001592,71160.0,71159.0,0.80620043]
[1730473662854,0.001592,71160.0,71159.0,0.81020043]
[1730473663314,0.001592,71160.0,71159.0,0.80620043]
[1730473663503,0.001592,71160.0,71159.0,0.92820043]
[1730473663722,1e-06,71160.0,71159.0,1.10110043]
[1730473663944,1e-06,71160.0,71159.0,1.10210043]
[1730473664167,1e-06,71160.0,71159.0,1.10610043]
[1730473665545,1e-06,71160.0,71159.0,1.09710043]
[1730473665777,0.001594,71172.0,71171.0,0.240506]
[1730473665999,0.001594,71172.0,71171.0,0.55066125]
[1730473666284,0.001594,71172.0,71171.0,0.5839758]
[1730473667173,0.001594,71172.0,71171.0,0.5879758]
[1730473667389,0.001594,71172.0,71171.0,0.5609758]
[1730473667628,0.001594,71172.0,71171.0,1.0609758]
[1730473668687,0.001594,71172.0,71171.0,1.0649758]
[1730473668907,0.001594,71172.0,71171.0,1.0879758]
[1730473669135,0.001594,71172.0,71171.0,1.0889758]
[1730473669344,0.001594,71172.0,71171.0,1.0929758]
[1730473669559,0.001594,71172.0,71171.0,1.0879758]
[1730473669790,0.001594,71172.0,71171.0,1.0839758]
[1730473670009,0.001594,71172.0,71171.0,1.09652282]
[1730473670444,0.001594,71172.0,71171.0,1.06452282]
[1730473670661,0.001594,71172.0,71171.0,1.06852282]
[1730473671125,0.001594,71172.0,71171.0,1.07852282]
[1730473671819,0.21079554,71193.0,71171.0,1.07852282]
[1730473671820,0.21079554,71193.0,71183.0,0.140482]
[1730473672051,0.001648,71194.0,71193.0,0.240463]
[1730473672267,0.001648,71194.0,71193.0,0.34317134]
[1730473672485,0.001648,71194.0,71193.0,0.35234648]
[1730473673157,0.001648,71194.0,71193.0,0.49080173]
[1730473673366,0.001648,71194.0,71193.0,0.49580173]
[1730473673822,0.001648,71194.0,71193.0,0.39590173]
[1730473674047,0.001648,71194.0,71193.0,0.39990173]
[1730473674481,0.001648,71194.0,71193.0,0.90346386]
[1730473674694,0.001648,71194.0,71193.0,0.89846386]
[1730473675150,0.001648,71194.0,71193.0,0.89946386]
[1730473675576,0.001648,71194.0,71193.0,0.89846386]
[1730473676031,0.01471761,71194.0,71193.0,0.51698348]
[1730473676267,0.17609543,71194.0,71193.0,0.51698348]
[1730473676541,0.142109,71194.0,71193.0,0.51598348]
[1730473676775,0.17610034,71194.0,71193.0,0.509]
[1730473677009,0.29363783,71194.0,71193.0,0.51583577]
[1730473677235,0.72755111,71194.0,71193.0,0.51583577]
[1730473677458,0.52974906,71194.0,71193.0,0.33773577]
[1730473677910,0.14049,71179.0,71178.0,0.21079554]
[1730473678117,0.31293657,71179.0,71178.0,0.21079554]
[1730473678527,0.140506,71171.0,71162.0,0.21079554]
[1730473678745,0.17449732,71171.0,71162.0,0.21079554]
[1730473678972,0.45551332,71171.0,71170.0,0.5]
[1730473680097,0.421522,71171.0,71170.0,0.5]
[1730473680353,0.45553186,71171.0,71170.0,0.51231973]
[1730473680817,0.59398711,71171.0,71170.0,0.51231973]
[1730473681024,0.71698711,71171.0,71170.0,0.51231973]
[1730473681252,0.72995073,71171.0,71170.0,0.51231973]
[1730473682331,0.72995073,71171.0,71154.0,0.21079554]
[1730473682332,0.240538,71155.0,71154.0,0.21079554]
[1730473682538,0.44896673,71155.0,71154.0,0.21079554]
[1730473682740,0.123,71154.0,71145.0,0.21079554]
[1730473682940,0.140556,71146.0,71145.0,0.21079554]
[1730473683141,0.31302111,71146.0,71145.0,0.21079554]
[1730473683350,0.281132,71141.0,71125.0,0.076525]
[1730473683563,0.140571,71138.0,71125.0,0.000825]
[1730473683766,0.01308071,71138.0,71125.0,0.000825]
[1730473683975,0.140578,71135.0,71130.0,0.00960541]
[1730473684223,0.01308071,71134.0,71130.0,0.00960541]
[1730473684411,0.01308071,71133.0,71130.0,0.00960541]
[1730473684636,0.01308071,71132.0,71130.0,0.00960541]
[1730473684772,0.21079554,71139.0,71130.0,0.00960541]
[1730473684773,0.281143,71138.0,71130.0,0.00960541]
[1730473684992,0.281143,71138.0,71125.0,0.000825]
[1730473684993,0.140575,71136.0,71125.0,0.141421]
[1730473685196,0.01305475,71135.0,71125.0,0.282019]
[1730473685405,0.01305475,71134.0,71126.0,0.01244284]
[1730473685608,0.21079554,71139.0,71131.0,0.140584]
[1730473685812,0.01304573,71138.0,71127.0,0.421778]
[1730473686009,0.01304573,71137.0,71132.0,0.00979054]
[1730473686297,0.01304573,71136.0,71130.0,0.003]
[1730473686504,0.0130445,71136.0,71133.0,0.00978555]
[1730473686659,0.140574,71137.0,71130.0,0.003]
[1730473686876,0.01303814,71136.0,71131.0,0.001]
[1730473687026,0.140572,71138.0,71131.0,0.01179547]
[1730473687243,0.140572,71138.0,71131.0,0.002]
[1730473687448,0.140572,71138.0,71132.0,0.00979052]
[1730473687646,0.140581,71133.0,71132.0,0.00979052]
[1730473688088,0.140583,71132.0,71131.0,0.002]
[1730473688303,0.140583,71132.0,71130.0,0.002]